fUSD/lending_fUSD_20241126
["ID","MTS","AMOUNT","RATE_DAILY","PERIOD"]
[343337350,1732579252545,175.76,0.00018589,30]
[343337351,1732579252864,175.76,0.00021173,30]
[343337353,1732579320722,1000.0,0.000261,120]
[343337354,1732579335857,1000.0,0.000261,120]
[343337357,1732579550858,383.49,0.00024977,120]
[343337358,1732579583267,500.0,0.000261,120]
[343337437,1732579749676,400.0,0.0001,2]
[343337497,1732579834934,-1745.48,0.00016219,2]
[343337498,1732579834944,-300.0,0.00017,2]
[343337499,1732579834953,-300.0,0.00017914,2]
[343337500,1732579834962,-4640.96951167,0.00017915,2]
[343337501,1732579835092,-418.18431078,0.00017915,2]
[343337511,1732579837555,-932.66,0.00017915,2]
[343337512,1732579837568,-2744.26119421,0.00017915,2]
[343337513,1732579837587,-500.0,0.00017915,2]
[343337514,1732579837612,-3851.35498334,0.00017915,2]
[343337515,1732579837622,-23900.0,0.00017999,2]
[343337516,1732579837632,-165.71,0.00018001,2]
[343337517,1732579837642,-150.0,0.00018001,2]
[343337518,1732579837653,-271.93,0.00018006,2]
[343337519,1732579837668,-1000.0,0.00018136,2]
[343337520,1732579837679,-2610.43,0.00018136,2]
[343337521,1732579837688,-383.49,0.00018165,2]
[343337522,1732579837698,-250.0,0.0001818,2]
[343337523,1732579837707,-735.11,0.00018209,2]
[343337524,1732579837811,-250.0,0.0001824,2]
[343337525,1732579837886,-4232.18,0.00018341,2]
[343337526,1732579837896,-250.0,0.00018369,2]
[343337527,1732579837906,-1012.25,0.00018401,2]
[343337528,1732579837922,-2544.36,0.0001841,2]
[343337529,1732579837932,-925.22,0.00018451,2]
[343337530,1732579837942,-1745.48,0.00018483,2]
[343337531,1732579837952,-200.0,0.00018493,2]
[343337532,1732579837961,-150.99,0.00018533,2]
[343337533,1732579837972,-231.58,0.00018541,2]
[343337534,1732579837982,-1798.36,0.000186,2]
[343337535,1732579837992,-164.93,0.00018792,2]
[343337536,1732579838002,-696.9,0.00018846,2]
[343337537,1732579838012,-166.7,0.00018877,2]
[343337538,1732579838022,-271.93,0.00018906,2]
[343337539,1732579838032,-350.0,0.00019,2]
[343337540,1732579838043,-8657.12443943,0.00019262,2]
[343337541,1732579838052,-150.0,0.00019445,2]
[343337542,1732579838061,-158.58570759,0.00019536,2]
[343337543,1732579838071,-9604.02088912,0.00019536,2]
[343337544,1732579838080,-11476.34940883,0.00019536,2]
[343337545,1732579838089,-6361.8305,0.00019537,2]
[343337546,1732579838099,-1000.0,0.00019537,2]
[343337547,1732579838108,-2500.0,0.00019537,2]
[343337548,1732579838118,-4246.2396,0.00019538,2]
[343337549,1732579838128,-638.074,0.00019538,2]
[343337550,1732579838138,-573.9514,0.00019538,2]
[343337551,1732579838147,-2500.0,0.00019538,2]
[343337552,1732579838157,-420.0,0.00019548,2]
[343337553,1732579838178,-2111.985,0.00019557,2]
[343337554,1732579838190,-152.906,0.00019557,2]
[343337555,1732579838200,-9604.02088908,0.00019576,2]
[343337557,1732579838210,-11476.34940878,0.00019576,2]
[343337559,1732579838219,-158.58570754,0.00019609,2]
[343337560,1732579838229,-9604.02088908,0.00019617,2]
[343337561,1732579838238,-11476.34940878,0.00019617,2]
[343337562,1732579838248,-500.0,0.00019633,2]
[343337563,1732579838257,-500.0,0.00019633,2]
[343337564,1732579838267,-500.0,0.00019633,2]
[343337565,1732579838277,-500.0,0.00019633,2]
[343337566,1732579838286,-500.0,0.00019633,2]
[343337567,1732579838296,-500.0,0.00019633,2]
[343337568,1732579838306,-1093.23,0.00019633,2]
[343337569,1732579838316,-232836.40376281,0.00019634,2]
[343337570,1732579838325,-500.0,0.00019636,2]
[343337571,1732579838335,-500.0,0.00019636,2]
[343337572,1732579838345,-500.0,0.00019636,2]
[343337573,1732579838355,-500.0,0.00019636,2]
[343337574,1732579838364,-500.0,0.00019636,2]
[343337575,1732579838374,-500.0,0.00019636,2]
[343337576,1732579838383,-500.0,0.00019636,2]
[343337577,1732579838393,-171.92986567,0.00019636,2]
[343337578,1732579838403,-500.0,0.00019636,2]
[343337579,1732579838417,-500.0,0.00019636,2]
[343337580,1732579838427,-500.0,0.00019636,2]
[343337581,1732579838442,-155.949937,0.00019636,2]
[343337582,1732579838451,-154.458993,0.00019636,2]
[343337583,1732579838461,-151.856618,0.00019636,2]
[343337584,1732579838470,-500.0,0.00019636,2]
[343337585,1732579838480,-500.0,0.00019637,2]
[343337586,1732579838490,-500.0,0.00019637,2]
[343337587,1732579838499,-500.0,0.00019637,2]
[343337588,1732579838508,-500.0,0.00019637,2]
[343337589,1732579838518,-500.0,0.00019637,2]
[343337590,1732579838527,-500.0,0.00019637,2]
[343337591,1732579838536,-500.0,0.00019637,2]
[343337592,1732579838546,-500.0,0.00019637,2]
[343337593,1732579838555,-500.0,0.00019637,2]
[343337594,1732579838565,-500.0,0.00019637,2]
[343337595,1732579838576,-500.0,0.00019637,2]
[343337596,1732579838585,-500.0,0.00019637,2]
[343337597,1732579838594,-500.0,0.00019637,2]
[343337598,1732579838604,-500.0,0.00019637,2]
[343337599,1732579838614,-500.0,0.00019637,2]
[343337600,1732579838623,-500.0,0.00019637,2]
[343337601,1732579838632,-500.0,0.00019637,2]
[343337602,1732579838641,-390.55974094,0.00019637,2]
[343337603,1732579838651,-500.0,0.00019637,2]
[343337604,1732579838664,-500.0,0.00019637,2]
[343337605,1732579838674,-500.0,0.00019637,2]
[343337606,1732579838684,-1427.62,0.00019637,2]
[343337607,1732579838694,-1427.62,0.00019637,2]
[343337608,1732579838704,-1427.62,0.00019637,2]
[343337609,1732579838715,-500.0,0.00019637,2]
[343337610,1732579838726,-500.0,0.00019637,2]
[343337611,1732579838737,-1279.83,0.00019637,2]
[343337612,1732579838748,-500.0,0.00019637,2]
[343337613,1732579838760,-1279.83,0.00019637,2]
[343337614,1732579838771,-500.0,0.00019637,2]
[343337615,1732579838782,-1279.83,0.00019637,2]
[343337616,1732579838792,-1513.51,0.00019637,2]
[343337617,1732579838803,-1513.51,0.00019637,2]
[343337618,1732579838814,-1513.51,0.00019637,2]
[343337619,1732579838824,-500.0,0.00019637,2]
[343337620,1732579838835,-500.0,0.00019637,2]
[343337621,1732579838845,-500.0,0.00019637,2]
[343337622,1732579838858,-500.0,0.00019637,2]
[343337623,1732579838868,-500.0,0.00019637,2]
[343337624,1732579838878,-251.89077644,0.00019637,2]
[343337625,1732579838888,-500.0,0.00019637,2]
[343337626,1732579838899,-500.0,0.00019637,2]
[343337627,1732579838915,-500.0,0.00019637,2]
[343337628,1732579838929,-500.0,0.00019637,2]
[343337629,1732579838939,-463.37082788,0.00019637,2]
[343337630,1732579838949,-589.94,0.00019637,2]
[343337631,1732579838959,-589.94,0.00019637,2]
[343337632,1732579838969,-589.94,0.00019637,2]
[343337633,1732579838978,-500.0,0.00019637,2]
[343337634,1732579838988,-563.2,0.00019637,2]
[343337635,1732579838999,-500.0,0.00019637,2]
[343337636,1732579839009,-500.0,0.00019637,2]
[343337637,1732579839019,-500.0,0.00019637,2]
[343337638,1732579839028,-511.16,0.00019637,2]
[343337639,1732579839038,-500.0,0.00019637,2]
[343337640,1732579839047,-300.38,0.00019637,2]
[343337641,1732579839057,-500.0,0.00019637,2]
[343337642,1732579839067,-265.34,0.00019637,2]
[343337643,1732579839077,-512.37,0.00019637,2]
[343337644,1732579839087,-955.16,0.00019637,2]
[343337645,1732579839097,-955.16,0.00019637,2]
[343337646,1732579839107,-955.16,0.00019637,2]
[343337647,1732579839118,-611.82,0.00019637,2]
[343337648,1732579839129,-611.82,0.00019637,2]
[343337649,1732579839139,-611.82,0.00019637,2]
[343337650,1732579839149,-1212.4,0.00019637,2]
[343337651,1732579839162,-1026.20510571,0.00019637,2]
[343337652,1732579839172,-1212.4,0.00019637,2]
[343337653,1732579839182,-1212.4,0.00019637,2]
[343337654,1732579839191,-500.0,0.00019637,2]
[343337655,1732579839200,-450.79,0.00019637,2]
[343337656,1732579839209,-500.0,0.00019637,2]
[343337657,1732579839219,-500.0,0.00019637,2]
[343337658,1732579839228,-500.0,0.00019637,2]
[343337659,1732579839237,-500.0,0.00019637,2]
[343337661,1732579839247,-500.0,0.00019637,2]
[343337663,1732579839256,-500.0,0.00019637,2]
[343337664,1732579839265,-500.0,0.00019637,2]
[343337666,1732579839275,-500.0,0.00019637,2]
[343337667,1732579839284,-500.0,0.00019637,2]
[343337668,1732579839294,-171.857632,0.00019637,2]
[343337669,1732579839304,-500.0,0.00019637,2]
[343337670,1732579839313,-500.0,0.00019637,2]
[343337671,1732579839322,-500.0,0.00019637,2]
[343337672,1732579839332,-500.0,0.00019637,2]
[343337673,1732579839342,-500.0,0.00019637,2]
[343337674,1732579839351,-500.0,0.00019637,2]
[343337675,1732579839360,-500.0,0.00019637,2]
[343337676,1732579839370,-502.73157212,0.00019637,2]
[343337677,1732579839379,-580.8135,0.00019637,2]
[343337679,1732579839389,-500.0,0.00019637,2]
[343337681,1732579839399,-500.0,0.00019637,2]
[343337683,1732579839408,-500.0,0.00019637,2]
[343337685,1732579839421,-1467.16,0.00019637,2]
[343337686,1732579839431,-1467.16,0.00019637,2]
[343337688,1732579839440,-1467.16,0.00019637,2]
[343337690,1732579839450,-500.0,0.00019637,2]
[343337692,1732579839459,-500.0,0.00019637,2]
[343337695,1732579839469,-500.0,0.00019637,2]
[343337696,1732579839479,-500.0,0.00019637,2]
[343337697,1732579839489,-500.0,0.00019637,2]
[343337698,1732579839499,-500.0,0.00019637,2]
[343337699,1732579839508,-500.0,0.00019637,2]
[343337701,1732579839518,-500.0,0.00019637,2]
[343337703,1732579839528,-500.0,0.00019637,2]
[343337705,1732579839537,-500.0,0.00019637,2]
[343337707,1732579839546,-782.84,0.00019637,2]
[343337709,1732579839555,-500.0,0.00019637,2]
[343337710,1732579839566,-782.84,0.00019637,2]
[343337712,1732579839579,-782.84,0.00019637,2]
[343337714,1732579839588,-500.0,0.00019637,2]
[343337716,1732579839598,-500.0,0.00019637,2]
[343337718,1732579839607,-500.0,0.00019637,2]
[343337720,1732579839616,-500.0,0.00019637,2]
[343337722,1732579839625,-500.0,0.00019637,2]
[343337724,1732579839634,-500.0,0.00019637,2]
[343337726,1732579839645,-500.0,0.00019637,2]
[343337727,1732579839654,-500.0,0.00019637,2]
[343337729,1732579839668,-500.0,0.00019637,2]
[343337731,1732579839678,-500.0,0.00019637,2]
[343337733,1732579839687,-500.0,0.00019637,2]
[343337735,1732579839697,-500.0,0.00019637,2]
[343337737,1732579839707,-500.0,0.00019637,2]
[343337739,1732579839716,-500.0,0.00019637,2]
[343337741,1732579839726,-500.0,0.00019637,2]
[343337743,1732579839735,-500.0,0.00019637,2]
[343337745,1732579839744,-281.85,0.00019637,2]
[343337747,1732579839754,-708.66,0.00019637,2]
[343337749,1732579839763,-708.66,0.00019637,2]
[343337751,1732579839773,-708.66,0.00019637,2]
[343337753,1732579839783,-3353.4,0.00019637,2]
[343337755,1732579839792,-3353.4,0.00019637,2]
[343337757,1732579839802,-500.0,0.00019637,2]
[343337759,1732579839811,-3353.4,0.00019637,2]
[343337761,1732579839820,-500.0,0.00019637,2]
[343337762,1732579839830,-500.0,0.00019637,2]
[343337764,1732579839839,-500.0,0.00019637,2]
[343337766,1732579839849,-500.0,0.00019637,2]
[343337768,1732579839859,-500.0,0.00019637,2]
[343337770,1732579839869,-627.65,0.00019637,2]
[343337772,1732579839879,-627.65,0.00019637,2]
[343337774,1732579839888,-627.65,0.00019637,2]
[343337776,1732579839898,-500.0,0.00019637,2]
[343337778,1732579839908,-500.0,0.00019637,2]
[343337780,1732579839922,-500.0,0.00019637,2]
[343337782,1732579839931,-500.0,0.00019637,2]
[343337784,1732579839941,-500.0,0.00019637,2]
[343337786,1732579839950,-500.0,0.00019637,2]
[343337788,1732579839959,-500.0,0.00019637,2]
[343337790,1732579839969,-500.0,0.00019637,2]
[343337792,1732579839978,-500.0,0.00019637,2]
[343337794,1732579839987,-500.0,0.00019637,2]
[343337796,1732579839996,-500.0,0.00019637,2]
[343337798,1732579840005,-500.0,0.00019637,2]
[343337800,1732579840015,-451.89,0.00019637,2]
[343337802,1732579840024,-500.0,0.00019637,2]
[343337804,1732579840034,-500.0,0.00019637,2]
[343337806,1732579840044,-500.0,0.00019637,2]
[343337807,1732579840053,-500.0,0.00019637,2]
[343337808,1732579840062,-500.0,0.00019637,2]
[343337809,1732579840072,-500.0,0.00019637,2]
[343337810,1732579840082,-500.0,0.00019637,2]
[343337811,1732579840091,-500.0,0.00019637,2]
[343337812,1732579840101,-500.0,0.00019637,2]
[343337813,1732579840109,-500.0,0.00019637,2]
[343337814,1732579840119,-500.0,0.00019637,2]
[343337815,1732579840129,-500.0,0.00019637,2]
[343337816,1732579840138,-832.67,0.00019637,2]
[343337817,1732579840147,-500.0,0.00019637,2]
[343337818,1732579840157,-500.0,0.00019637,2]
[343337819,1732579840172,-832.67,0.00019637,2]
[343337820,1732579840181,-500.0,0.00019637,2]
[343337821,1732579840190,-500.0,0.00019637,2]
[343337822,1732579840200,-500.0,0.00019637,2]
[343337823,1732579840209,-500.0,0.00019637,2]
[343337824,1732579840218,-832.67,0.00019637,2]
[343337825,1732579840227,-592.35,0.00019637,2]
[343337826,1732579840237,-592.35,0.00019637,2]
[343337827,1732579840246,-592.35,0.00019637,2]
[343337828,1732579840256,-973.89,0.00019637,2]
[343337829,1732579840265,-973.89,0.00019637,2]
[343337830,1732579840274,-973.89,0.00019637,2]
[343337831,1732579840283,-500.0,0.00019637,2]
[343337832,1732579840292,-500.0,0.00019637,2]
[343337833,1732579840301,-500.0,0.00019637,2]
[343337834,1732579840311,-500.0,0.00019637,2]
[343337835,1732579840321,-500.0,0.00019637,2]
[343337836,1732579840330,-500.0,0.00019637,2]
[343337837,1732579840339,-557.64,0.00019637,2]
[343337838,1732579840349,-500.0,0.00019637,2]
[343337839,1732579840358,-366.94,0.00019637,2]
[343337840,1732579840367,-500.0,0.00019637,2]
[343337841,1732579840377,-500.0,0.00019637,2]
[343337842,1732579840386,-500.0,0.00019637,2]
[343337843,1732579840395,-500.0,0.00019637,2]
[343337844,1732579840404,-500.0,0.00019637,2]
[343337845,1732579840419,-500.0,0.00019637,2]
[343337846,1732579840428,-500.0,0.00019637,2]
[343337847,1732579840444,-500.0,0.00019637,2]
[343337848,1732579840453,-795.68,0.00019637,2]
[343337849,1732579840462,-795.68,0.00019637,2]
[343337850,1732579840472,-795.68,0.00019637,2]
[343337851,1732579840482,-500.0,0.00019637,2]
[343337852,1732579840491,-697.51,0.00019637,2]
[343337853,1732579840501,-500.0,0.00019637,2]
[343337854,1732579840510,-697.51,0.00019637,2]
[343337855,1732579840520,-697.51,0.00019637,2]
[343337856,1732579840530,-250.11,0.00019637,2]
[343337857,1732579840540,-500.0,0.00019637,2]
[343337858,1732579840549,-500.0,0.00019637,2]
[343337859,1732579840558,-500.0,0.00019637,2]
[343337860,1732579840567,-500.0,0.00019637,2]
[343337861,1732579840577,-1127.56,0.00019637,2]
[343337862,1732579840589,-643.74,0.00019637,2]
[343337863,1732579840599,-643.74,0.00019637,2]
[343337864,1732579840609,-1127.56,0.00019637,2]
[343337865,1732579840618,-1127.56,0.00019637,2]
[343337866,1732579840628,-643.74,0.00019637,2]
[343337867,1732579840638,-589.29,0.00019637,2]
[343337868,1732579840647,-500.0,0.00019637,2]
[343337869,1732579840657,-1428.96,0.00019637,2]
[343337870,1732579840677,-1428.96,0.00019637,2]
[343337871,1732579840687,-1428.96,0.00019637,2]
[343337872,1732579840696,-528.5,0.00019637,2]
[343337873,1732579840705,-241.13043939,0.00019637,2]
[343337874,1732579840714,-666.99,0.00019637,2]
[343337875,1732579840723,-666.99,0.00019637,2]
[343337876,1732579840732,-666.99,0.00019637,2]
[343337877,1732579840741,-500.0,0.00019637,2]
[343337878,1732579840750,-500.0,0.00019637,2]
[343337879,1732579840760,-500.0,0.00019637,2]
[343337881,1732579840768,-500.0,0.00019637,2]
[343337882,1732579840778,-917.15,0.00019637,2]
[343337883,1732579840787,-917.15,0.00019637,2]
[343337884,1732579840796,-917.15,0.00019637,2]
[343337885,1732579840806,-500.0,0.00019637,2]
[343337886,1732579841168,-500.0,0.00019637,2]
[343337887,1732579841179,-500.0,0.00019637,2]
[343337888,1732579841188,-151.856618,0.00019637,2]
[343337889,1732579841198,-151.856618,0.00019637,2]
[343337890,1732579841208,-500.0,0.00019637,2]
[343337891,1732579841217,-500.0,0.00019637,2]
[343337892,1732579841226,-500.0,0.00019637,2]
[343337893,1732579841236,-500.0,0.00019637,2]
[343337894,1732579841245,-500.0,0.00019637,2]
[343337895,1732579841254,-500.0,0.00019637,2]
[343337896,1732579841263,-1093.23,0.00019637,2]
[343337897,1732579841273,-1093.23,0.00019637,2]
[343337898,1732579841282,-1093.23,0.00019637,2]
[343337899,1732579841291,-500.0,0.00019637,2]
[343337900,1732579841301,-500.0,0.00019637,2]
[343337901,1732579841310,-500.0,0.00019637,2]
[343337902,1732579841319,-500.0,0.00019637,2]
[343337903,1732579841328,-551.48,0.00019637,2]
[343337904,1732579841337,-500.0,0.00019637,2]
[343337905,1732579841347,-500.0,0.00019637,2]
[343337906,1732579841356,-500.0,0.00019637,2]
[343337907,1732579841365,-500.0,0.00019637,2]
[343337908,1732579841375,-500.0,0.00019637,2]
[343337909,1732579841384,-718670.2254,0.00019638,2]
[343337910,1732579841393,-782.84,0.00019655,2]
[343337911,1732579841402,-500.0,0.00019655,2]
[343337912,1732579841414,-973.89,0.00019655,2]
[343337913,1732579841423,-500.0,0.00019655,2]
[343337914,1732579841432,-500.0,0.00019655,2]
[343337915,1732579841441,-171.73897816,0.00019655,2]
[343337916,1732579841451,-500.0,0.00019655,2]
[343337917,1732579841461,-500.0,0.00019655,2]
[343337918,1732579841471,-500.0,0.00019655,2]
[343337919,1732579841480,-1093.23,0.00019655,2]
[343337920,1732579841490,-500.0,0.00019656,2]
[343337921,1732579841499,-500.0,0.00019656,2]
[343337922,1732579841508,-500.0,0.00019656,2]
[343337923,1732579841517,-500.0,0.00019656,2]
[343337924,1732579841526,-500.0,0.00019656,2]
[343337925,1732579841535,-500.0,0.00019656,2]
[343337926,1732579841544,-500.0,0.00019656,2]
[343337927,1732579841553,-500.0,0.00019656,2]
[343337928,1732579841562,-1427.62,0.00019656,2]
[343337929,1732579841575,-500.0,0.00019656,2]
[343337930,1732579841592,-1279.83,0.00019656,2]
[343337931,1732579841603,-1279.83,0.00019656,2]
[343337932,1732579841614,-1513.51,0.00019656,2]
[343337933,1732579841623,-500.0,0.00019656,2]
[343337934,1732579841632,-500.0,0.00019656,2]
[343337935,1732579841642,-500.0,0.00019656,2]
[343337936,1732579841657,-589.94,0.00019656,2]
[343337937,1732579841670,-589.94,0.00019656,2]
[343337938,1732579841680,-500.0,0.00019656,2]
[343337939,1732579841690,-955.16,0.00019656,2]
[343337940,1732579841700,-955.16,0.00019656,2]
[343337941,1732579841709,-611.82,0.00019656,2]
[343337942,1732579841719,-1212.4,0.00019656,2]
[343337943,1732579841728,-500.0,0.00019656,2]
[343337944,1732579841737,-500.0,0.00019656,2]
[343337945,1732579841747,-500.0,0.00019656,2]
[343337946,1732579841756,-500.0,0.00019656,2]
[343337947,1732579841766,-500.0,0.00019656,2]
[343337948,1732579841776,-500.0,0.00019656,2]
[343337949,1732579841785,-500.0,0.00019656,2]
[343337950,1732579841795,-500.0,0.00019656,2]
[343337951,1732579841805,-500.0,0.00019656,2]
[343337952,1732579841815,-1467.16,0.00019656,2]
[343337953,1732579841825,-1467.16,0.00019656,2]
[343337954,1732579841835,-500.0,0.00019656,2]
[343337955,1732579841845,-500.0,0.00019656,2]
[343337956,1732579841855,-500.0,0.00019656,2]
[343337957,1732579841865,-500.0,0.00019656,2]
[343337958,1732579841874,-500.0,0.00019656,2]
[343337959,1732579841884,-782.84,0.00019656,2]
[343337960,1732579841894,-500.0,0.00019656,2]
[343337961,1732579841904,-458.19,0.00019656,2]
[343337962,1732579841917,-500.0,0.00019656,2]
[343337963,1732579841927,-500.0,0.00019656,2]
[343337964,1732579841937,-500.0,0.00019656,2]
[343337965,1732579841947,-500.0,0.00019656,2]
[343337966,1732579841957,-500.0,0.00019656,2]
[343337967,1732579841967,-500.0,0.00019656,2]
[343337968,1732579841977,-708.66,0.00019656,2]
[343337969,1732579841986,-3353.4,0.00019656,2]
[343337970,1732579841996,-3353.4,0.00019656,2]
[343337971,1732579842006,-500.0,0.00019656,2]
[343337972,1732579842016,-500.0,0.00019656,2]
[343337973,1732579842025,-500.0,0.00019656,2]
[343337974,1732579842035,-627.65,0.00019656,2]
[343337975,1732579842045,-627.65,0.00019656,2]
[343337976,1732579842060,-500.0,0.00019656,2]
[343337977,1732579842081,-500.0,0.00019656,2]
[343337978,1732579842091,-500.0,0.00019656,2]
[343337979,1732579842100,-500.0,0.00019656,2]
[343337980,1732579842113,-500.0,0.00019656,2]
[343337981,1732579842125,-401.16,0.00019656,2]
[343337982,1732579842134,-500.0,0.00019656,2]
[343337983,1732579842144,-458.08,0.00019656,2]
[343337984,1732579842153,-500.0,0.00019656,2]
[343337985,1732579842166,-500.0,0.00019656,2]
[343337986,1732579842175,-500.0,0.00019656,2]
[343337987,1732579842185,-500.0,0.00019656,2]
[343337988,1732579842195,-832.67,0.00019656,2]
[343337989,1732579842205,-832.67,0.00019656,2]
[343337990,1732579842215,-592.35,0.00019656,2]
[343337991,1732579842225,-973.89,0.00019656,2]
[343337993,1732579842235,-500.0,0.00019656,2]
[343337995,1732579842244,-500.0,0.00019656,2]
[343337997,1732579842254,-500.0,0.00019656,2]
[343337999,1732579842264,-500.0,0.00019656,2]
[343338001,1732579842273,-500.0,0.00019656,2]
[343338002,1732579842283,-795.68,0.00019656,2]
[343338003,1732579842292,-795.68,0.00019656,2]
[343338004,1732579842302,-697.51,0.00019656,2]
[343338005,1732579842312,-697.51,0.00019656,2]
[343338006,1732579842321,-500.0,0.00019656,2]
[343338007,1732579842331,-1127.56,0.00019656,2]
[343338008,1732579842340,-643.74,0.00019656,2]
[343338009,1732579842349,-643.74,0.00019656,2]
[343338010,1732579842358,-1428.96,0.00019656,2]
[343338011,1732579842368,-1428.96,0.00019656,2]
[343338013,1732579842378,-666.99,0.00019656,2]
[343338014,1732579842387,-666.99,0.00019656,2]
[343338016,1732579842397,-500.0,0.00019656,2]
[343338018,1732579842407,-917.15,0.00019656,2]
[343338020,1732579842418,-917.15,0.00019656,2]
[343338022,1732579842428,-500.0,0.00019656,2]
[343338024,1732579842438,-151.856618,0.00019656,2]
[343338025,1732579842447,-500.0,0.00019656,2]
[343338026,1732579842457,-500.0,0.00019656,2]
[343338027,1732579842467,-164.12288879,0.00019656,2]
[343338028,1732579842476,-1093.23,0.00019656,2]
[343338029,1732579842485,-32221.6323,0.00019657,2]
[343338030,1732579842495,-100000.0,0.00019657,2]
[343338031,1732579842505,-1000.0,0.00019657,2]
[343338032,1732579842514,-216156.7546,0.00019657,2]
[343338033,1732579842524,-500.0,0.00019657,2]
[343338034,1732579842533,-9604.02088908,0.00019657,2]
[343338035,1732579842542,-11476.34940878,0.00019657,2]
[343338036,1732579842551,-160.83598586,0.00019673,2]
[343338037,1732579842559,-500.0,0.00019673,2]
[343338038,1732579842570,-158.58570754,0.00019682,2]
[343338039,1732579842581,-9604.02088908,0.00019698,2]
[343338040,1732579842592,-11476.34940878,0.00019698,2]
[343338041,1732579842602,-150.0,0.00019729,2]
[343338042,1732579842611,-9604.02088908,0.00019738,2]
[343338043,1732579842621,-11476.34940878,0.00019738,2]
[343338044,1732579842630,-150.0,0.00019748,2]
[343338045,1732579842640,-150.0,0.00019753,2]
[343338046,1732579842649,-158.58570754,0.00019754,2]
[343338047,1732579842660,-500.0,0.00019755,2]
[343338048,1732579842675,-500.0,0.00019755,2]
[343338049,1732579842685,-512.32916081,0.00019755,2]
[343338050,1732579842694,-500.0,0.00019755,2]
[343338051,1732579842704,-1427.62,0.00019755,2]
[343338052,1732579842713,-500.0,0.00019755,2]
[343338053,1732579842723,-1513.51,0.00019755,2]
[343338054,1732579842732,-500.0,0.00019755,2]
[343338055,1732579842742,-500.0,0.00019755,2]
[343338056,1732579842751,-611.82,0.00019755,2]
[343338057,1732579842760,-1212.4,0.00019755,2]
[343338058,1732579842771,-500.0,0.00019755,2]
[343338059,1732579842780,-500.0,0.00019755,2]
[343338060,1732579842790,-500.0,0.00019755,2]
[343338061,1732579842799,-500.0,0.00019755,2]
[343338062,1732579842809,-500.0,0.00019755,2]
[343338063,1732579842819,-500.0,0.00019755,2]
[343338064,1732579842828,-708.66,0.00019755,2]
[343338065,1732579842838,-500.0,0.00019755,2]
[343338066,1732579842849,-172.68910896,0.00019755,2]
[343338067,1732579842859,-301.06,0.00019755,2]
[343338068,1732579842869,-500.0,0.00019755,2]
[343338069,1732579842879,-304.27,0.00019755,2]
[343338070,1732579842888,-592.35,0.00019755,2]
[343338071,1732579842898,-500.0,0.00019755,2]
[343338072,1732579842908,-1127.56,0.00019755,2]
[343338073,1732579842921,-500.0,0.00019755,2]
[343338074,1732579842931,-151.856618,0.00019755,2]
[343338075,1732579842942,-591.71,0.00019756,2]
[343338076,1732579842952,-894.87,0.00019756,2]